Cogmind - Beta 16 @@@ ROGUE MODE // 2026.01.30 @ 14:20:51 Player: verv Result: Destroyed by VL-TAX(R) with Subdweller Machine Gun Performance ------------- Evolutions (0) 0 Regions Visited (2) 400 Robots Destroyed (29) 145 Value Destroyed (738) 738 Prototype IDs (3) 60 Alien Tech Used (0) 0 Bonus (-36) -36 TOTAL SCORE: 1307 Bonus ------- Friendly Fire -36 Cogmind --------- Core Integrity 0/250 Matter 193/300 Energy 200/200 System Corruption 1% Temperature Cool (0) Movement Core (950) Ox18 Location -10/Subcaves Parts ------- > --- POWER (1) -------- Subdweller Power Source > --- PROPULSION (2) --- (None) > --- UTILITY (2) ------ High-capacity Storage Unit Gun Armor > --- WEAPON (2+2) ----- EM Pulse Gun Improved Assault Rifle Makeshift Shrapnel Gun (+) > --- INVENTORY (20) --- Subdweller Power Source Targeting Computer Light Armor Plating Peak State ------------ > --- POWER ------------ Subdweller Power Source > --- PROPULSION ------- Subdweller Monowheel Subdweller Monowheel > --- UTILITY ---------- High-capacity Storage Unit Gun Armor > --- WEAPON ----------- EM Pulse Gun Improved Assault Rifle Makeshift Shrapnel Gun > --- INVENTORY -------- Subdweller Power Source Targeting Computer Light Armor Plating [Rating: 24] Favorites ----------- Power Improved Ion Engine Engine Improved Ion Engine Propulsion Light Treads Treads Light Treads Wheel Subdweller Monowheel Utility High-capacity Storage Unit Device Structural Scanner Storage High-capacity Storage Unit Processor Visual Processing Unit Protection Light Armor Plating Weapon Assault Rifle Energy Gun EM Pulse Gun Ballistic Gun Assault Rifle Build | -11 -10 -10 ------- Run | Yrd Mat Sub Slots Evolved . | . . . Power . | . . . Propulsion . | . . . Utility . | . . . Weapon . | . . . Parts Attached 26 | 6 11 9 Power 6 | 1 3 2 Engine 6 | 1 3 2 Core . | . . . Reactor . | . . . Propulsion 4 | 2 . 2 Treads 2 | 2 . . Leg . | . . . Wheel 2 | . . 2 Hover . | . . . Flight . | . . . Utility 8 | 1 6 1 Device 2 | . 2 . Storage 3 | 1 2 . Processor 1 | . 1 . Hackware . | . . . Protection 2 | . 1 1 Artifact . | . . . Weapon 8 | 2 2 4 Energy Gun 2 | . . 2 Energy Cannon . | . . . Ballistic Gun 6 | 2 2 2 Ballistic Cannon . | . . . Launcher . | . . . Special Weapon . | . . . Impact Weapon . | . . . Slashing Weapon . | . . . Piercing Weapon . | . . . Special Melee Weapon . | . . . Unidentified Prototypes 3 | . 2 1 Corrupted Parts 1 | . . 1 System Corruption 1 | . . 1 Parts Lost 6 | . . 6 Power 1 | . . 1 Propulsion 2 | . . 2 Utility 1 | . . 1 Weapon 2 | . . 2 Highest Loss Streak 6 | . . 6 To Critical Strikes . | . . . Average Backups 5 | . 6 3 Power . | . . . Propulsion . | . . . Utility 1 | . 1 1 Weapon 2 | . 3 . Tool/Special . | . . . Unused Backups 5 | . 2 3 Power 1 | . . 1 Propulsion . | . . . Utility 2 | . . 2 Weapon 2 | . 2 . Tool/Special . | . . . Average Slot Usage (%) 89 | . 99 71 Engine 13 | . 14 11 Treads 19 | . 28 3 Wheel 1 | . . 3 Device 2 | . 3 1 Storage 13 | . 14 11 Processor 3 | . 4 . Protection 6 | . 5 10 Energy Gun 3 | . . 9 Ballistic Gun 25 | . 28 20 Peak Build Rating 24 | 6 14 24 Average Rating 11 | 4 9 17 On Entrance 5 | . 6 11 Avg Prop Armor Cover (%) . | . . . Naked Turns . | . . . Heaviest Build 56 | 14 55 56 Greatest Support 40 | 40 40 40 Greatest Overweight (x) 18 | 2 1 18 Average Overweight (x) 1 | . . 5 Largest Inventory Capacity 20 | 8 20 20 Average Capacity 17 | 6 17 20 Most Carried 11 | 3 11 7 Average Carried 5 | . 6 3 Final Capacity 20 | 8 20 20 Final Carried 7 | . 7 3 Class Distribution -------------------- 79% | Mutant 20% | Gunner Dominant Class ---------------- Mutant | -10/Materials Gunner | -10/Subcaves Resources | -11 -10 -10 ----------- Run | Yrd Mat Sub Matter Collected 837 | 244 411 182 Remotely . | . . . Salvage Created 893 | 21 575 297 Parts 68 | 2 42 24 Haulers Intercepted . | . . . Recyclers Shooed 1 | . 1 . Parts Field Recycled . | . . . Retrieved Matter . | . . . Parts Self-Destructed . | . . . Prevented . | . . . Parts Restored . | . . . Kills | -11 -10 -10 ------- Run | Yrd Mat Sub Combat Hostiles Destroyed 25 | . 18 7 Guns 25 | . 18 7 Classes Destroyed 5 | 1 3 1 Worker 1 | 1 . . Watcher 3 | . 3 . Swarmer 9 | . 9 . Grunt 9 | . 9 . Subdweller 7 | . . 7 Best Kill Streak 4 | 1 4 2 Combat Bots Only 3 | . 3 2 Max Kills in Single Turn 1 | 1 1 1 Gunslinging . | . . . Exploded . | . . . Melee . | . . . Uniques/NPCs Destroyed . | . . . Combat | -11 -10 -10 -------- Run | Yrd Mat Sub Hostile Shots Fired 152 | . 87 65 Missed 54 | . 32 22 Hits 98 | . 55 43 Projectile 98 | . 55 43 Critical Strikes 3 | . . 3 Damage Taken 1524 | . 556 968 Core 263 | . 72 191 Absorbed by Shields . | . . . Regen/Repaired (Parts) 87 | . 87 . Core Remaining (%) 100 | 100 . . Volleys Fired 84 | 2 51 31 Largest 3 | 2 2 3 Hottest 87 | 40 40 87 Shots Fired 166 | 4 94 68 Gun 166 | 4 94 68 Cannon . | . . . Launcher . | . . . Special . | . . . Kinetic 148 | 4 94 50 Thermal . | . . . Explosive . | . . . Electromagnetic 18 | . . 18 Robot Hit Streak 20 | 1 7 20 Robot Miss Streak 3 | 1 2 3 Penetration Max . | . . . Secondary Targets 6 | . 4 2 Max Gunslinging Chain 1 | . 1 1 Shots Hit Robots 105 | 2 53 50 Core Hits 47 | 2 29 16 Critical Kills . | . . . Critical Parts Destroyed . | . . . Critical Strikes . | . . . Melee Attacks . | . . . Impact . | . . . Slashing . | . . . Piercing . | . . . Sneak Attacks . | . . . Combat Hostiles . | . . . Follow-up Attacks . | . . . Damage Inflicted 1471 | 35 724 712 Guns 1469 | 35 722 712 Cannons . | . . . Explosions . | . . . Melee . | . . . Ramming 2 | . 2 . Kinetic 1322 | 35 722 565 Thermal . | . . . Explosive . | . . . Electromagnetic 147 | . . 147 Impact . | . . . Slashing . | . . . Piercing . | . . . Highest Corruption 1 | . . 1 Average Corruption 1 | . . 1 Corruption Purged . | . . . Corruption Blocked . | . . . Effects 3 | . . 3 Message Errors 1 | . . 1 Heat Flow Errors 2 | . . 2 Overload Shots . | . . . Overflow Damage . | . . . Projectiles . | . . . Explosions . | . . . Melee . | . . . Knockbacks . | . . . Impact . | . . . Kinetic . | . . . Secondary . | . . . Self-Inflicted Damage . | . . . Shots . | . . . Rammed 1 | . 1 . Targets Rammed 1 | . 1 . Kicked . | . . . Crushed . | . . . Highest Temperature 239 | . 4 239 Average Temperature 46 | . 2 113 Received Heat Transfer 327 | . 210 117 Siege Activations . | . . . Martial Activations . | . . . Shielding Activations . | . . . Robots Disrupted . | . . . Combat Hostiles . | . . . Robots Corrupted . | . . . Combat Hostiles . | . . . Parts Fried . | . . . Impact Corruptions . | . . . Robots Melted . | . . . Combat Hostiles . | . . . Parts Melted . | . . . Heat Transferred . | . . . Parts Sabotaged . | . . . Parts Stolen . | . . . Parts Stripped . | . . . Power Chain Reactions . | . . . Alert | -11 -10 -10 ------- Run | Yrd Mat Sub Maximum Alert Level . | . . . Low Security (%) 100 | 100 100 . Level 1 . | . . . Level 2 . | . . . Level 3 . | . . . Level 4 . | . . . Level 5 . | . . . High Security . | . . . Max Security . | . . . Peak Influence 161 | 5 161 . Initial 3 | . 3 . Average 52 | . 55 . Influence Increases 484 | 5 479 . Destroy 0b10 Robot/C 360 | . 360 . Destroy 0b10 Robot/NC 20 | 5 15 . Destroy Leader 76 | . 76 . Successful Hack 12 | . 12 . Destroy Structure 1 | . 1 . Lose Combat Pursuer 15 | . 15 . Influence Decreases 484 | . 458 26 Entered New Map 16 | . 2 14 Time Decay 468 | . 456 12 Squads Dispatched 3 | . 3 . Investigation 2 | . 2 . Extermination . | . . . Reinforcement 1 | . 1 . Assault . | . . . Garrison . | . . . Intercept . | . . . Searches Triggered . | . . . Construction Impeded . | . . . Haulers Reinforced . | . . . Active Scanning Responses . | . . . Cargo Convoy Interrupts . | . . . Stealth | -11 -10 -10 --------- Run | Yrd Mat Sub Distress Signals 3 | . 3 . Communications Jammed . | . . . Distress Signals . | . . . Times Spotted 38 | . 30 8 Peak Tracking Total 5 | . 5 3 Tactical Retreats 1 | . 1 . Traps | -11 -10 -10 ------- Run | Yrd Mat Sub Traps Triggered . | . . . Indirectly . | . . . Trap Hack Attempts . | . . . Triggered . | . . . Disarmed . | . . . Reprogrammed . | . . . Reused . | . . . Traps Extracted . | . . . Installed . | . . . Triggered . | . . . Machines | -11 -10 -10 ---------- Run | Yrd Mat Sub Machines Disabled 1 | . 1 . Max in Single Turn 1 | . 1 . Machines Repaired . | . . . Machines Dismantled . | . . . Machines Sabotaged . | . . . Overloaded Fab Kills . | . . . Hacking | -11 -10 -10 --------- Run | Yrd Mat Sub Machines Accessed 6 | . 6 . Terminals 3 | . 3 . Fabricators . | . . . Repair Stations 1 | . 1 . Recycling Units 2 | . 2 . Scanalyzers . | . . . Garrison Access . | . . . Total Hacks 16 | . 16 . Successful 14 | . 14 . Failed 2 | . 2 . Catastrophic . | . . . Database Lockouts . | . . . Manual . | . . . Terminals 9 | . 9 . Fabricators . | . . . Repair Stations 4 | . 4 . Recycling Units 3 | . 3 . Scanalyzers . | . . . Garrison Access . | . . . Terminal Hacks 7 | . 7 . Record 3 | . 3 . Terminal Index 1 | . 1 . Alert Level 1 | . 1 . Hauler Manifests 1 | . 1 . Zone Layout 1 | . 1 . Fabricator Hacks . | . . . Repair Station Hacks 4 | . 4 . Scan Component 2 | . 2 . Repair 2 | . 2 . Recycling Unit Hacks 3 | . 3 . Report Inventory 2 | . 2 . Retrieve Components 1 | . 1 . Scanalyzer . | . . . Garrison Access Hacks . | . . . Unauthorized Hacks . | . . . Terminals . | . . . Fabricators . | . . . Repair Stations . | . . . Recycling Units . | . . . Scanalyzers . | . . . Garrison Access . | . . . Data Cores Recovered . | . . . Used . | . . . Hacking Detections 4 | . 4 . Full Trace Events 2 | . 2 . Feedback Events . | . . . Feedback Blocked . | . . . Robot Schematics Acquired . | . . . Robots Built . | . . . Authchips . | . . . Time . | . . . Total Robot Build Rating . | . . . Part Schematics Acquired . | . . . Parts Built . | . . . Authchips . | . . . Time . | . . . Total Part Build Rating . | . . . Part Studies Acquired . | . . . Parts Repaired 2 | . 2 . Time 58 | . 58 . Parts Recycled . | . . . Recycled Matter . | . . . Retrieved Matter . | . . . Retrieved Components 6 | . 6 . Parts Scanalyzed . | . . . Part Schematics Acquired . | . . . Parts Damaged . | . . . Bothacking | -11 -10 -10 ------------ Run | Yrd Mat Sub Used RIF Installer . | . . . Robots Hacked . | . . . Non-combat . | . . . Combat . | . . . Robot Hacks Applied . | . . . Relay Couplers Released . | . . . Fabnet Peak Effective % . | . . . Robots Rewired . | . . . Allies Hacked . | . . . Hacks Repelled . | . . . Allies | -11 -10 -10 -------- Run | Yrd Mat Sub Total Allies . | . . . Largest Group . | . . . Highest-Rated Group . | . . . Highest-Rated Ally . | . . . Total Orders . | . . . Ally Attacks . | . . . Total Damage . | . . . Kills . | . . . Allies Corrupted . | . . . Allies Melted . | . . . Intel | -11 -10 -10 ------- Run | Yrd Mat Sub Active Infowar (turns) 1301 | . 1211 90 Optics 714 | . 714 . Structural 587 | . 497 90 Robot Analysis Total . | . . . Derelict Logs Recovered . | . . . Drone Launches . | . . . Drone Recoveries . | . . . Exploration | -11 -10 -10 ------------- Run | Yrd Mat Sub Turns Passed 3335 | 119 2133 1083 Spaces Moved 1284 | 77 939 268 Core 92 | 23 . 69 Treads 1039 | 54 939 46 Legs . | . . . Wheels 153 | . . 153 Hover . | . . . Flight . | . . . Fastest Speed 50 | 50 160 120 Average Speed 227 | 132 198 355 Slowest Speed 950 | 160 240 950 Overloaded Moves . | . . . Propulsion Burnouts . | . . . Robots Hopped . | . . . Potential Cave-ins . | . . . Cave-ins Triggered . | . . . Exploration Rate (%) 39 | 4 95 18 Regions Visited 2 Branch Regions 1 Pre-discovered Areas . | . . . Known Exits Taken . | . . . Unknown Exits Taken 2 | 1 1 . Scrap Searched . | . . . Spaces Dug . | . . . Terrain Destroyed . | . . . Melee . | . . . Projectile . | . . . AOE . | . . . Terrain Rammed . | . . . Walls Destroyed . | . . . Machines Disabled . | . . . Actions | -11 -10 -10 --------- Run | Yrd Mat Sub Total 1543 | 90 1116 337 Wait 97 | . 87 10 Move 1282 | 76 938 268 Hop . | . . . Pick Up 32 | 6 18 8 Fast Attach . | . . . Attach 19 | 6 5 8 Detach 1 | . . 1 Swap 13 | . 9 4 Drop 14 | . 7 7 Fire 84 | 2 51 31 Melee . | . . . Ram . | . . . Kick . | . . . Crush 1 | . 1 . Escape Stasis . | . . . Rewire . | . . . Trap . | . . . Miscellaneous . | . . . Route ------- -11/Scrapyard -10/Materials (discovered 6 exits: [*Mat x3] / [*Min x2] / [*Sub]) -10/Subcaves History --------- Turn | Location | Event 3 | -11/Scrapyard | Discovered new exit (range 16) 120 | -11/Scrapyard | Entered Materials 264 | -10/Materials | Discovered new exit (range 9) 300 | -10/Materials | Build established: Mutant 451 | -10/Materials | Discovered new exit (range 16) 612 | -10/Materials | Discovered new exit (range 17) 761 | -10/Materials | Discovered new exit (range 12) 1492 | -10/Materials | Discovered new exit (range 13) 1964 | -10/Materials | Discovered new exit (range 10) 1983 | -10/Materials | Repaired Imp. Ion Engine 2009 | -10/Materials | Repaired Assault Rifle 2253 | -10/Materials | Entered Subcaves 2254 | -10/Subcaves | Approached by a straggling Scientist 2293 | -10/Subcaves | A swath of the cavern ceiling suddenly collapsed 2363 | -10/Subcaves | A Subdweller sparked back to life 2363 | -10/Subcaves | A Subdweller sparked back to life 2363 | -10/Subcaves | A Subdweller sparked back to life 2386 | -10/Subcaves | Core integrity fell below 50% 2431 | -10/Subcaves | Core integrity fell below 20% 2446 | -10/Subcaves | Lost 6 parts (1p2n1u2w) 2484 | -10/Subcaves | Found Prototype Protection 2485 | -10/Subcaves | Identified Gun Armor 2487 | -10/Subcaves | Attached Gun Armor, gained temporary slots: Weapon x2 2952 | -10/Subcaves | Build established: Gunner 3336 | -10/Subcaves | Destroyed by VL-TAX(R) with Subdweller Machine Gun Last Messages --------------- 88-0AQ(c): "I think it's somewhere north of here" Subatomizers dissect the Broken Sub. Monowheel. 88-0AQ(c): "I think it's somewhere north of here" AM /%>QTI0IZZNI44G,ROJKZ/P/Z%:X>PH 88-0AQ(c): "I think it's somewhere north of here" System corrupted: Heat flow error (+142). System corrupted: Heat flow error (+279). 88-0AQ(c): "I think it's somewhere north of here" HD-QMH(R) destroyed. Switching to secondary target: 3S-5F3(R). 3S-5F3(R) destroyed. 88-0AQ(c): "I think it's somewhere north of here" 88-0AQ(c): "We're getting close, I can feel it." [Achievement: First Step to Greatness] Map ----- +----------------------------------------------------+ | ?????????????????????????????????????????????????? | | ?????????????????????????????????????????????????? | | ?????????????????????????????????????????????????? | | ?????????????????????????????????????????????????? | | ?????????????????????????????????????????????????? | | ?????????????????????????????????????????????????? | | ?????????????????????????????????????????????????? | | ?????????????????????????????????????????????????? | | ?????????????????????????????????????????????????? | | ?????????????????????????????????????????????????? | | ?????????????????????????????????????????????????? | | ?????????????????????????????????????????????????? | | ?????????????????????????????????????????????????? | | ?????????????????????????????????????????????????? | | ?????????????????????????????????????????????????? | | ?????????????????##"?????????????????????????????? | | ?????????????????"""?????????????????????????????? | | ????????????????? "#??####???????????????????????? | | ????????????????? ##?# ##??????????????????????? | | ?????????????##### ### #??????????????????????? | | ?????????????? """### #??????????????????????? | | ???????????????# ""## ##?????????????????????? | | ??????????????## ## ##????????????????????? | | ??????????????# #?# ##???????????????????? | | ??????????????# # #?# #???????????????????? | | ????????????????# #### @ #???????????????????? | | ???????????????## ##### #???????????????????? | | ??????????????## ## #???????????????????? | | ??????????????# R #???????????????????? | | ?????????###### ##???????????????????? | | ???????### ##??????????????????? | | ??????## !&*"""#???????????????? | | ???#### ### !%& #???????????????? | | ???# #?# !######???????????????? | | ???# #### ##????????????????????? | | ?"### ## &! #????????????????????? | | ?"###### ## %& #???????????????????? | | "##???## ## & ## #??????????????????? | | ""##?###### #?####??????????????????? | | ## ############# #???????????????????????? | | "" #### ###?## #?????######????????????? | | ##"#""## ####### ###?????# ###??????????? | | ###" #" #### # ##??????# #??????????? | | #"###"# ## ##?????# ##??????????? | | "######## ### # #?????## #???????????? | | #""# #### ### ##### #????### ##??????????? | | #" ## !# ###### ##???# #??????????? | | " &[[ # # # #???## ####???????? | | ####### ! &! # ###??# = #???????? | | #########"!! ###?## #???????? | +----------------------------------------------------+ Best States ------------- Heat Dissipation 25 Energy Generation 15 Energy Capacity 265 Matter Stores 300 Matter Capacity 300 Sight Range 18 Terrain Scan Density 10 Armor Coverage 150 Evasion (%) 40 Recoil Reduction 2 Item Schematics ----------------- None Robot Schematics ------------------ None Fabricated ------------ Nothing Repaired ---------- Assault Rifle | 13% | -10/Materials Studied --------- None Alien Tech Used ----------------- None Achievements -------------- A Problem For Future Me First Step to Greatness Part-time Mechanic Risk Taker Shopping List There's More Where That Came From Challenges ------------ None Game ------ Seed SpacefoldSmartNanovents Manual? 0 Play Time 00:28:13 Cumulative 0.9 hours Start 2026.01.30 @ 13:53:22 End 2026.01.30 @ 14:20:51 Sessions 1 Manual Loads 0 Difficulty Rogue Special Mode None Game No. 2 Rogue 2 Adventurer 0 Explorer 0 Win Type - Total 0 Types 0/0/0/0/0/0/0/0/0/0 Lore% 0 Gallery% 2 Achievement% 3 Wizard Run 0 Options --------- Layout 1 ASCII 0 Keyboard 0 Movement Mouse Keybinds 0 Fullscreen 2 Font 32/SmallcapsGlow Map View 50x35 Zoom Use 0% Tactical HUD 0 Map Filters NONE Filters NONE Steam 1 RUN: 9b17fb12-4460-42cb-960c-98c833bf161e